fUSD/lending_fUSD_20240528
["ID","MTS","AMOUNT","RATE_DAILY","PERIOD"]
[328131362,1716917432298,-960.92297283,0.000124,2]
[328131363,1716917437962,-1566.35488983,0.000124,2]
[328131364,1716917438058,-1594.26281129,0.000124,2]
[328131365,1716917438068,-499.99,0.00012597,2]
[328131366,1716917438077,-167.26483,0.0001267,2]
[328131367,1716917438087,-504.81049688,0.00012695,2]
[328131368,1716917438097,-155.0,0.00012695,2]
[328131369,1716917438107,-1246.52348474,0.00012695,2]
[328131370,1716917438116,-321.62768125,0.00012695,2]
[328131371,1716917438125,-1093.38362618,0.00012696,2]
[328131372,1716917438135,-36495.58592598,0.00012697,2]
[328131373,1716917438149,-5542.227312,0.00012697,2]
[328131374,1716917438162,-8248.0,0.00012697,2]
[328131375,1716917438174,-907.87201028,0.00012697,2]
[328131376,1716917438194,-17554.40759543,0.00012697,2]
[328131377,1716917438207,-11333.84063624,0.00012697,2]
[328131378,1716917438223,-6791.36119169,0.00012697,2]
[328131379,1716917438235,-9727.06275058,0.00012697,2]
[328131380,1716917438251,-23752.32075518,0.00012697,2]
[328131381,1716917438263,-115383.15479902,0.00012697,2]
[328131382,1716917438274,-224.99,0.00012697,2]
[328131383,1716917438284,-800.1513,0.00012699,2]
[328131384,1716917438294,-69823.1823,0.00012699,2]
[328131385,1716917438304,-9810.02570686,0.00012796,2]
[328131386,1716917438313,-155.09278876,0.00012797,2]
[328131387,1716917438322,-466.21506399,0.00012798,2]
[328131388,1716917438332,-155.0,0.00012798,2]
[328131389,1716917438342,-599.86209312,0.00012898,2]
[328131391,1716917438351,-168.98346659,0.00012899,2]
[328131393,1716917438361,-167.45503334,0.000129,2]
[328131395,1716917438371,-464.64140612,0.000129,2]
[328131397,1716917438380,-558.71966182,0.000129,2]
[328131398,1716917438390,-2565.87981805,0.000129,2]
[328131399,1716917438400,-166.32466518,0.000129,2]
[328131400,1716917438410,-321.67143558,0.000129,2]
[328131401,1716917438419,-164.45040785,0.000129,2]
[328131402,1716917438429,-153.27,0.0001299,2]
[328131403,1716917438439,-153.27,0.0001299,2]
[328131404,1716917438449,-153.27,0.0001299,2]
[328131405,1716917438458,-153.27,0.0001299,2]
[328131406,1716917438471,-153.27,0.0001299,2]
[328131407,1716917438480,-153.27,0.0001299,2]
[328131408,1716917438489,-153.27,0.0001299,2]
[328131409,1716917438499,-153.27,0.0001299,2]
[328131410,1716917438509,-218.8764611,0.0001299,2]
[328131411,1716917438519,-635.29313637,0.00012998,2]
[328131412,1716917438529,-358.80859427,0.00012998,2]
[328131413,1716917438539,-1242.87315941,0.00012998,2]
[328131414,1716917438550,-306.53561288,0.00012998,2]
[328131415,1716917438560,-163.87350341,0.00012999,2]
[328131416,1716917438570,-185.98723433,0.00012999,2]
[328131417,1716917438580,-2000.0,0.00012999,2]
[328131418,1716917438589,-200.0,0.00012999,2]
[328131419,1716917438599,-150.0,0.00012999,2]
[328131420,1716917438609,-60905.90227038,0.00013,2]
[328131421,1716917438621,-16987.04296678,0.00013,2]
[328131422,1716917438633,-1099.75854406,0.00013,2]
[328131423,1716917440612,-46259.96741003,0.00013,2]
[328131424,1716917441540,-1216.421023,0.00013,2]
[328131526,1716917443033,-2053.15464803,0.00013,2]
[328131527,1716917443044,-680.3546727,0.00013,2]
[328131528,1716917443055,-1317.63765125,0.00013,2]
[328131529,1716917443066,-1014.6249167,0.00013,2]
[328131530,1716917443143,-720.61822955,0.00013,2]
[328131531,1716917443154,-1352.6025662,0.00013,2]
[328131532,1716917443169,-580.39258057,0.00013,2]
[328131533,1716917443247,-1310.89655929,0.00013,2]
[328131534,1716917443259,-619.03769461,0.00013,2]
[328131535,1716917443271,-297.95376087,0.00013,2]
[328131536,1716917443282,-293.30521316,0.00013,2]
[328131537,1716917443293,-1605.93138325,0.00013,2]
[328131538,1716917443304,-1477.83317733,0.00013,2]
[328131539,1716917443354,-1699.025,0.00013,2]
[328131541,1716917443367,-1751.78914824,0.00013,2]
[328131543,1716917446016,-379802.97205968,0.00013,2]
[328131544,1716917446028,-10423.56580115,0.00013,2]
[328131545,1716917446040,-505.08354664,0.00013,2]
[328131546,1716917446296,-188.36640695,0.00013,2]
[328131549,1716917446423,-422.91126348,0.00013,2]
[328131550,1716917589990,212.32,0.00010497,2]
[328131551,1716917636798,524.28180258,9e-05,2]
[328131552,1716917672965,263.39819742,6.94e-05,2]
[328131553,1716917672989,3942.73332722,6.94e-05,2]
[328131554,1716917673010,4000.0,6.94e-05,2]
[328131555,1716917673032,2637.03042478,6.94e-05,2]
[328131556,1716917796863,155.49565988,0.0001,2]
[328131558,1716917936966,-481.01276567,0.00011685,2]
[328131559,1716917936988,-118.98723433,0.00011686,2]
[328131570,1716918245559,200.0,0.00011514,2]
[328131571,1716918261125,201.7,9.935e-05,2]
[328131596,1716918632261,-505.62075808,0.00011695,2]
[328131597,1716918632271,-481.01276567,0.00011696,2]
[328131598,1716918632280,-250.0,0.00011697,2]
[328131599,1716918632289,-155.0,0.00011698,2]
[328131600,1716918632298,-513.13337588,0.00011699,2]
[328131601,1716918632308,-1000.0,0.00011793,2]
[328131602,1716918632317,-7233.11537014,0.000118,2]
[328131603,1716918632328,-888.50890406,0.000118,2]
[328131604,1716918632340,-334.62848752,0.000118,2]
[328131605,1716918632351,-1073.74607988,0.000118,2]
[328131606,1716918632362,-11959.75845638,0.000118,2]
[328131607,1716918632371,-2078.18,0.00011853,2]
[328131608,1716918632381,-250.0,0.00011884,2]
[328131609,1716918632392,-169.53,0.00011939,2]
[328131610,1716918632401,-499.99,0.00012088,2]
[328131611,1716918632410,-169.53,0.00012146,2]
[328131612,1716918632419,-201.7,0.00012199,2]
[328131613,1716918632428,-1299.11942176,0.00012348,2]
[328131614,1716918632437,-169.53,0.00012354,2]
[328131615,1716918632447,-11505.382,0.00012497,2]
[328131616,1716918632457,-1000.0,0.00012497,2]
[328131617,1716918632466,-2500.0,0.00012497,2]
[328131618,1716918632475,-169.53,0.00012561,2]
[328131619,1716918632484,-644.06681603,0.00012595,2]
[328131620,1716918632494,-155.9133629,0.00012595,2]
[328131621,1716918632502,-208.81790596,0.00012595,2]
[328131622,1716918632512,-198.07010589,0.00012595,2]
[328131623,1716918632521,-7519.40413428,0.00012595,2]
[328131624,1716918632531,-489.95530596,0.00012595,2]
[328131625,1716918632540,-2073.03488183,0.00012595,2]
[328131626,1716918632551,-377.88213118,0.00012595,2]
[328131627,1716918632564,-624.01902801,0.00012596,2]
[328131628,1716918632574,-1012.30856095,0.00012596,2]
[328131629,1716918632583,-230526.92718753,0.00012597,2]
[328131630,1716918632599,-754.74831959,0.00012597,2]
[328131631,1716918632610,-922.53142088,0.00012597,2]
[328131632,1716918632621,-1486.7837916,0.00012597,2]
[328131633,1716918632633,-499.40807414,0.00012597,2]
[328131635,1716918632644,-10809.60120626,0.00012597,2]
[328131637,1716918632653,-211.57050601,0.00012869,2]
[328131638,1716918632662,-539.87588379,0.00012898,2]
[328131639,1716918632671,-168.98346659,0.00012899,2]
[328131640,1716918632680,-167.45503333,0.000129,2]
[328131641,1716918632690,-688.72983102,0.000129,2]
[328131642,1716918632702,-525.33049062,0.000129,2]
[328131643,1716918632711,-320.58265399,0.000129,2]
[328131644,1716918632720,-153.29,0.0001299,2]
[328131645,1716918632729,-153.29,0.0001299,2]
[328131646,1716918632738,-153.29,0.0001299,2]
[328131647,1716918632747,-2795.19690803,0.00012999,2]
[328131648,1716918632758,-734.6075021,0.00012999,2]
[328131649,1716918632769,-2319.57107726,0.00012999,2]
[328131650,1716918632780,-3682.03172911,0.00012999,2]
[328131654,1716918639334,-961.53606697,0.00012999,2]
[328131655,1716918639344,-1049.54320537,0.00012999,2]
[328131656,1716918639354,-273.88547766,0.00013,2]
[328131657,1716918639487,-1169.55400002,0.00013,2]
[328131658,1716918639498,-2319.86839981,0.00013,2]
[328131659,1716918639510,-10357.382788,0.00013,2]
[328131660,1716918639521,-1055.98696552,0.00013,2]
[328131661,1716918639533,-69835.94333207,0.00013,2]
[328131662,1716918639622,-6982.6374,0.00013,2]
[328131663,1716918639637,-532.82207945,0.00013,2]
[328131664,1716918639765,-751.676,0.00013,2]
[328131665,1716918639777,-577.49065696,0.00013,2]
[328131666,1716918639939,-773.86898734,0.00013,2]
[328131709,1716918641125,-620.46130412,0.000129,2]
[328131710,1716918641136,-560.44846168,0.000129,2]
[328131711,1716918641146,-569.05153632,0.00013,2]
[328131712,1716918641158,-7159.63400657,0.00013,2]
[328131713,1716918641168,-385.74309999,0.00013,2]
[328131714,1716918642094,-658.67903192,0.00013,2]
[328131715,1716918642105,-3236.2249575,0.00013,2]
[328131716,1716918642116,-562.44851433,0.00013,2]
[328131717,1716918642127,-262.79677064,0.00013,2]
[328131718,1716918642138,-999.9998995,0.00013,2]
[328131719,1716918642149,-658.39,0.00013,2]
[328131720,1716918642160,-851.11812917,0.00013,2]
[328131721,1716918642171,-817.22185268,0.00013,2]
[328131722,1716918642182,-4567.28728259,0.00013,2]
[328131723,1716918642197,-752.06503485,0.00013,2]
[328131726,1716918643265,-418.93875694,0.00013,2]
[328131727,1716918643381,-423.95581672,0.00013,2]
[328131728,1716918643393,-46860.67726829,0.00013,2]
[328131729,1716918643404,-372.82110767,0.00013,2]
[328131730,1716918643415,-2659.37169153,0.00013,2]
[328131731,1716918643426,-507.53028692,0.00013,2]
[328131732,1716918643492,-526.20153699,0.00013,2]
[328131733,1716918643504,-1717.11285285,0.00013,2]
[328131734,1716918643594,-13258.87889957,0.00013,2]
[328131741,1716918646188,-481.01276567,0.00012999,2]
[328131742,1716918646198,-218.44070354,0.00013,2]
[328131743,1716918646318,-429.34971866,0.00013,2]
[328131744,1716918646438,-2874.13903805,0.00013,2]
[328131745,1716918646450,-696.13304399,0.00013,2]
[328131746,1716918646565,-890.31731708,0.00013,2]
[328131748,1716918646577,-3251.74170898,0.00013,2]
[328131749,1716918646588,-4909.13988842,0.00013,2]
[328131750,1716918646619,-636.2039695,0.00013,2]
[328131751,1716918660758,700.0,0.000125,4]
[328131752,1716918662873,1500.0,0.000126,4]
[328131753,1716918664975,2200.0,0.000127,4]
[328131754,1716918667190,3000.0,0.000128,4]
[328131755,1716918669192,3700.0,0.000129,4]
[328131756,1716919234347,203.52,0.0001081,2]
[328131766,1716919782834,260.19296588,0.00011514,2]
[328131767,1716919793890,193.34,0.00010402,2]
[328131779,1716919832629,-790.70683797,0.0001161,2]
[328131780,1716919832639,-266.59316203,0.00011611,2]
[328131781,1716919832651,-940.84590348,0.00011611,2]
[328131782,1716919832660,-535.2022881,0.00011611,2]
[328131783,1716919832669,-481.01276567,0.00011612,2]
[328131784,1716919832679,-21570.78,0.00012419,2]
[328131785,1716919832691,-845.45805094,0.00012497,2]
[328131786,1716919832702,-419.56121302,0.00012497,2]
[328131787,1716919832863,-9664.18773604,0.00012497,2]
[328131788,1716919832872,-457.15675823,0.00012497,2]
[328131789,1716919832883,-597.65331933,0.00012497,2]
[328131791,1716919839790,-1137.49452244,0.00012497,2]
[328131792,1716919839801,-250.0,0.00012519,2]
[328131793,1716919839810,-876.18,0.00012547,2]
[328131794,1716919839820,-1384.78,0.00012578,2]
[328131795,1716919839830,-193.34,0.00012666,2]
[328131796,1716919839841,-153.32,0.00012783,2]
[328131797,1716919839850,-153.32,0.00012792,2]
[328131798,1716919839860,-499.99,0.00012792,2]
[328131799,1716919839870,-153.32,0.00012802,2]
[328131800,1716919839880,-153.32,0.00012811,2]
[328131801,1716919839889,-153.32,0.0001282,2]
[328131802,1716919839898,-153.32,0.00012829,2]
[328131803,1716919839908,-153.32,0.00012838,2]
[328131804,1716919839917,-153.32,0.00012847,2]
[328131805,1716919839929,-3135.1335,0.000129,2]
[328131806,1716919839941,-1000.0,0.000129,2]
[328131807,1716919839951,-168.24814589,0.000129,2]
[328131808,1716919839961,-1214.51395629,0.000129,2]
[328131809,1716919839975,-75.11065461,0.000129,2]
[328131810,1716919839985,-168.98346659,0.000129,2]
[328131811,1716919839994,-1121.5587588,0.000129,2]
[328131812,1716919840006,-981.02081189,0.000129,2]
[328131813,1716919840018,-954.38925081,0.000129,2]
[328131814,1716919840028,-452.12080446,0.000129,2]
[328131815,1716919840038,-319.75079502,0.000129,2]
[328131816,1716919840048,-186.46639277,0.0001299,2]
[328131817,1716919840058,-152.71,0.0001299,2]
[328131818,1716919840067,-155.13609017,0.00012998,2]
[328131819,1716919840077,-656.39657241,0.00012998,2]
[328131820,1716919840086,-5845.76608936,0.00012998,2]
[328131821,1716919840096,-233.89339736,0.00012998,2]
[328131822,1716919840106,-258.97242969,0.00012998,2]
[328131823,1716919840116,-626.20227206,0.00012998,2]
[328131824,1716919840126,-1347.41184939,0.00012998,2]
[328131825,1716919840136,-530.44311484,0.00012999,2]
[328131826,1716919840145,-2712.10680136,0.00012999,2]
[328131827,1716919840155,-524.77160269,0.00012999,2]
[328131828,1716919840165,-943634.62603703,0.00013,2]
[328131829,1716919840177,-137198.62906036,0.00013,2]
[328131831,1716919840190,-4240.44459372,0.00013,2]
[328131852,1716919842160,-269.976,0.00013,2]
[328131853,1716919842174,-1880.85,0.00013,2]
[328131854,1716919842350,-960.69255003,0.00013,2]
[328131857,1716919842361,-542938.89849885,0.00013,2]
[328131859,1716919842372,-121386.04665324,0.00013,2]
[328131877,1716919843805,-291475.56039345,0.00013,2]
[328131878,1716919843816,-4512.24898482,0.00013,2]
[328131880,1716919844068,-1236.47104233,0.00013,2]
[328131883,1716919844641,-3484.3132817,0.00013,2]
[328131887,1716919847196,-481.01276567,0.00012999,2]
[328131888,1716919847206,-183261.37444264,0.00013,2]
[328131889,1716919847218,-416.25454569,0.00013,2]
[328131890,1716919847230,-1141.42087886,0.00013,2]
[328131892,1716919847243,-756.71535306,0.00013,2]
[328131893,1716919847255,-331.7991987,0.00013,2]
[328131895,1716919847471,-522.93853237,0.00013,2]
[328131896,1716919847484,-362.68407531,0.00013,2]
[328131897,1716919847495,-1188.35,0.00013,2]
[328131898,1716919847508,-35629.31438915,0.00013,2]
[328131899,1716919847519,-3032.51144869,0.00013,2]
[328131900,1716919851621,572.78982099,0.00012998,7]
[328131901,1716919863582,400.0,0.000126,4]
[328131902,1716919865677,800.0,0.000127,4]
[328131903,1716919867766,1200.0,0.000128,4]
[328131904,1716919870009,1600.0,0.000129,4]
[328131906,1716920181785,148.72094946,0.00010082,2]
[328131907,1716920181806,31.93905054,0.00010082,2]
[328131908,1716920254632,-155.0,0.00011686,2]
[328131909,1716920254655,-536.52210812,0.00011686,2]
[328131910,1716920254678,-481.01276567,0.00011687,2]
[328131911,1716920254700,-827.46512621,0.00011687,2]
[328131912,1716920299848,-4000.0,0.00011686,2]
[328131913,1716920300612,-4000.0,0.00011686,2]
[328131914,1716920301203,-4000.0,0.00011686,2]
[328131915,1716920433092,230.66,0.00010043,2]
[328131924,1716920929452,219.12,9.991e-05,2]
[328131925,1716921009063,150.0,0.00012999,7]
[328131926,1716921016294,-600.0,0.00011564,2]
[328131945,1716921031984,-1297.83949895,0.00011564,2]
[328131946,1716921031994,-337.53485432,0.00011565,2]
[328131947,1716921032006,-143.47791135,0.00011565,2]
[328131948,1716921032016,-157.37297207,0.00011578,2]
[328131949,1716921032025,-1232.12499707,0.00011686,2]
[328131951,1716921032035,-744.57940984,0.00011698,2]
[328131953,1716921032044,-23890.0,0.00011872,2]
[328131955,1716921032053,-1673.9,0.00011872,2]
[328131957,1716921032063,-250.0,0.0001188,2]
[328131958,1716921032072,-415.93,0.00011902,2]
[328131959,1716921032082,-700.95,0.00012004,2]
[328131960,1716921032091,-299.05,0.00012172,2]
[328131961,1716921032101,-219.12,0.00012255,2]
[328131962,1716921032110,-499.99,0.00012307,2]
[328131963,1716921032120,-172.33,0.00012645,2]
[328131964,1716921032129,-21208.22407592,0.0001278,2]
[328131965,1716921032140,-1246.52348474,0.00012798,2]
[328131966,1716921032150,-4000.0,0.00012798,2]
[328131967,1716921032159,-285.04886624,0.00012798,2]
[328131968,1716921032169,-534.81598618,0.00012799,2]
[328131969,1716921032178,-155.13609017,0.00012799,2]
[328131970,1716921032188,-55075.9714,0.000128,2]
[328131971,1716921032198,-621.1765,0.000128,2]
[328131972,1716921032208,-317.45218232,0.000128,2]
[328131973,1716921032217,-230.67116817,0.00012869,2]
[328131974,1716921032228,-500.0,0.00012895,2]
[328131975,1716921032238,-500.0,0.00012896,2]
[328131976,1716921032248,-530.44311484,0.00012898,2]
[328131977,1716921032257,-258.97242969,0.00012898,2]
[328131978,1716921032267,-2712.10680136,0.00012898,2]
[328131979,1716921032277,-626.20227206,0.00012898,2]
[328131980,1716921032289,-233.89339736,0.00012898,2]
[328131981,1716921032302,-656.39657241,0.00012898,2]
[328131982,1716921032311,-5061.44091987,0.00012898,2]
[328131983,1716921032322,-5845.76608936,0.00012899,2]
[328131984,1716921032333,-168.98346659,0.00012899,2]
[328131985,1716921032343,-39223.2628,0.000129,2]
[328131986,1716921032352,-100000.0,0.000129,2]
[328131987,1716921032361,-175.62765228,0.000129,2]
[328131988,1716921032374,-1000.0,0.000129,2]
[328131989,1716921032384,-245000.0,0.000129,2]
[328131990,1716921032394,-162.10824672,0.000129,2]
[328131991,1716921032403,-167.2492727,0.000129,2]
[328131992,1716921032413,-172.91734175,0.000129,2]
[328131993,1716921032423,-221.56904741,0.000129,2]
[328131994,1716921032432,-733.76346758,0.000129,2]
[328131995,1716921032443,-1883.87919205,0.00012987,2]
[328131996,1716921032452,-453.1417826,0.00012989,2]
[328131997,1716921032462,-1213.3470595,0.00012989,2]
[328131998,1716921032472,-151.88,0.0001299,2]
[328131999,1716921032485,-151.88,0.0001299,2]
[328132000,1716921032495,-151.88,0.0001299,2]
[328132001,1716921032504,-151.88,0.0001299,2]
[328132002,1716921032515,-151.88,0.0001299,2]
[328132003,1716921032524,-151.88,0.0001299,2]
[328132004,1716921032534,-151.88,0.0001299,2]
[328132005,1716921032543,-151.88,0.0001299,2]
[328132006,1716921032552,-151.88,0.0001299,2]
[328132007,1716921032562,-151.88,0.0001299,2]
[328132008,1716921032572,-425.1029166,0.00012991,2]
[328132009,1716921032582,-397.0640506,0.00012991,2]
[328132010,1716921032591,-369.0251846,0.00012991,2]
[328132011,1716921032601,-340.9863186,0.00012991,2]
[328132012,1716921032610,-1652.8154456,0.00012991,2]
[328132013,1716921032619,-2092.2838318,0.00012991,2]
[328132014,1716921032629,-2531.752218,0.00012991,2]
[328132015,1716921032638,-2971.2206042,0.00012991,2]
[328132016,1716921032648,-360.93902952,0.00012998,2]
[328132017,1716921032658,-10529.4669443,0.00012998,2]
[328132018,1716921032667,-2362.29532977,0.00012998,2]
[328132019,1716921032676,-250.52612615,0.00012998,2]
[328132020,1716921032687,-364.27737293,0.00012998,2]
[328132021,1716921032696,-155.0,0.00012998,2]
[328132022,1716921032705,-389.30522083,0.00012999,2]
[328132023,1716921032715,-155.0,0.00012999,2]
[328132024,1716921032724,-155.19543092,0.00012999,2]
[328132025,1716921032734,-711.2608821,0.00012999,2]
[328132026,1716921032744,-4071.86777563,0.00012999,2]
[328132027,1716921032754,-150.0,0.00012999,2]
[328132028,1716921032764,-209481.07685,0.00013,2]
[328132029,1716921032812,-995.87545876,0.00013,2]
[328132030,1716921032824,-10437.76591935,0.00013,2]
[328132031,1716921032835,-441.67652893,0.00013,2]
[328132032,1716921032847,-3361.8399999,0.00013,2]
[328132033,1716921032876,-69960.00873293,0.00013,2]
[328132034,1716921032888,-6755.0,0.00013,2]
[328132035,1716921032899,-14307.37959499,0.00013,2]
[328132036,1716921032920,-566.55211337,0.00013,2]
[328132037,1716921032934,-3418.55193141,0.00013,2]
[328132038,1716921033156,-740.58240107,0.00013,2]
[328132039,1716921033168,-500.53973003,0.00013,2]
[328132040,1716921033180,-2268.68775,0.00013,2]
[328132041,1716921033193,-1581.72744129,0.00013,2]
[328132042,1716921033204,-59211.34651956,0.00013,2]
[328132043,1716921033216,-1047.0,0.00013,2]
[328132044,1716921033228,-4654.44,0.00013,2]
[328132050,1716921037658,-464.51322832,0.00011563,2]
[328132051,1716921037671,-3016.22929482,0.00011563,2]
[328132052,1716921037683,-756.21056318,0.00011563,2]
[328132053,1716921037814,-15280.41334202,0.00011563,2]
[328132054,1716921037824,-177.85156014,0.0001299,2]
[328132055,1716921037834,-177.85156014,0.0001299,2]
[328132056,1716921037843,-177.85156014,0.0001299,2]
[328132057,1716921037853,-915737.35307119,0.00013,2]
[328132058,1716921037862,-27039.84240579,0.00013,2]
[328132059,1716921037952,-263.8,0.00013,2]
[328132066,1716921040524,-155.92483155,0.00012989,2]
[328132067,1716921040533,-203.45614845,0.00013,2]
[328132068,1716921040686,-2930.325011,0.00013,2]
[328132069,1716921040700,-417765.79631021,0.00013,2]
[328132070,1716921040713,-508173.11175183,0.00013,2]
[328132071,1716921040723,-1000.0,0.00013,2]
[328132072,1716921040733,-267733.80035698,0.00013,2]
[328132073,1716921041541,-599.49434172,0.00013,2]
[328132074,1716921041553,-2495.58714316,0.00013,2]
[328132075,1716921041564,-1014.35570306,0.00013,2]
[328132076,1716921041715,-11841.47470784,0.00013,2]
[328132090,1716921042813,-26388.2845738,0.00013,2]
[328132091,1716921042966,-679321.36216409,0.00013,2]
[328132092,1716921042978,-1453.73541446,0.00013,2]
[328132093,1716921042989,-11381.57432134,0.00013,2]
[328132094,1716921043001,-11322.30067832,0.00013,2]
[328132095,1716921043115,-24086.58563825,0.00013,2]
[328132096,1716921043127,-1619.04805651,0.00013,2]
[328132097,1716921043138,-1747.575,0.00013,2]
[328132098,1716921043296,-392.29490377,0.00013,2]
[328132107,1716921045721,-757.25445626,0.000129,2]
[328132108,1716921045732,-469.65,0.000129,2]
[328132109,1716921046040,-2471.52126535,0.000129,2]
[328132110,1716921046050,-481.01276567,0.00012999,2]
[328132111,1716921046059,-257.96596898,0.00012999,2]
[328132112,1716921046071,-640.7472672,0.00012999,2]
[328132113,1716921046083,-275.919,0.00012999,2]
[328132114,1716921046107,-723.20726277,0.00012999,2]
[328132115,1716921046116,-18686.77780734,0.00013,2]
[328132116,1716921046127,-750.52233814,0.00013,2]
[328132117,1716921046138,-332.8820774,0.00013,2]
[328132118,1716921046149,-475.24593431,0.00013,2]
[328132119,1716921046184,-389.63124367,0.00013,2]
[328132120,1716921046196,-2440.86548356,0.00013,2]
[328132121,1716921046208,-1020.83631643,0.00013,2]
[328132122,1716921046219,-378.79104645,0.00013,2]
[328132123,1716921046230,-465.45006,0.00013,2]
[328132124,1716921046241,-6112.69279021,0.00013,2]
[328132125,1716921046252,-3920.780729,0.00013,2]
[328132126,1716921064799,3518.28094946,9.991e-05,2]
[328132127,1716921064830,37035.79733059,9.991e-05,2]
[328132136,1716921280977,150.0,9.716e-05,2]
[328132137,1716921424645,238.01,0.00010258,2]
[328132139,1716921471873,481.9,0.00010959,2]
[328132140,1716921584841,678.91377,0.00010959,2]
[328132142,1716921917290,226.1,9.849e-05,2]
[328132168,1716922232120,-452.42025595,0.00011425,2]
[328132169,1716922232129,-481.01276567,0.00011426,2]
[328132170,1716922232138,-3029.375069,0.00011428,2]
[328132171,1716922232148,-157.96197515,0.00011485,2]
[328132172,1716922232157,-150.0,0.00011549,2]
[328132173,1716922232167,-1495.22,0.0001173,2]
[328132174,1716922232176,-2000.0,0.00011782,3]
[328132175,1716922232185,-250.0,0.000118,2]
[328132176,1716922232195,-197.42684078,0.00011843,2]
[328132177,1716922232207,-583.69889785,0.00011843,2]
[328132178,1716922232216,-226.90689815,0.00011853,2]
[328132179,1716922232230,-4125.0000005,0.00011853,2]
[328132180,1716922232241,-2131.10060352,0.00011853,2]
[328132181,1716922232252,-11289.36905957,0.00011853,2]
[328132182,1716922232264,-2202.04343826,0.00011853,2]
[328132183,1716922232273,-883.32528591,0.0001187,2]
[328132184,1716922232283,-157.34,0.00011871,2]
[328132185,1716922232292,-46671.01,0.00011871,2]
[328132186,1716922232301,-1895.25,0.00011904,2]
[328132187,1716922232310,-499.99,0.00011904,2]
[328132188,1716922232319,-197.62,0.00011924,2]
[328132189,1716922232329,-1000.0,0.0001208,2]
[328132190,1716922232338,-226.1,0.00012113,2]
[328132191,1716922232347,-1382.70872343,0.00012181,2]
[328132192,1716922232357,-1000.0,0.000127,2]
[328132193,1716922232366,-1000.0,0.000127,2]
[328132194,1716922232375,-263.8,0.000128,2]
[328132195,1716922232384,-387.34365317,0.00012866,2]
[328132196,1716922232394,-244.64718684,0.00012869,2]
[328132197,1716922232402,-161.02,0.00012889,2]
[328132198,1716922232411,-500.0,0.00012895,2]
[328132199,1716922232421,-500.0,0.00012896,2]
[328132200,1716922232430,-4555.29682791,0.00012898,2]
[328132201,1716922232440,-161.02,0.000129,2]
[328132202,1716922232448,-164.18464401,0.000129,2]
[328132203,1716922232457,-1582.04305808,0.000129,2]
[328132204,1716922232466,-218.16443348,0.000129,2]
[328132205,1716922232478,-2758.92312486,0.000129,2]
[328132206,1716922232488,-167.60194462,0.000129,2]
[328132207,1716922232496,-591.16882934,0.000129,2]
[328132208,1716922232505,-197.87473694,0.000129,2]
[328132209,1716922232514,-161.02,0.0001291,2]
[328132210,1716922232524,-161.02,0.00012921,2]
[328132211,1716922232534,-161.02,0.00012932,2]
[328132212,1716922232543,-161.02,0.00012943,2]
[328132213,1716922232552,-161.02,0.00012953,2]
[328132214,1716922232561,-1206.62067247,0.00012989,2]
[328132215,1716922232571,-621.4963697,0.00012989,2]
[328132216,1716922232580,-314.3385576,0.00012989,2]
[328132217,1716922232589,-11779.2421997,0.00012989,2]
[328132218,1716922232598,-2672.0642088,0.00012989,2]
[328132220,1716922232607,-151.69,0.0001299,2]
[328132222,1716922232616,-151.69,0.0001299,2]
[328132224,1716922232626,-177.85156014,0.0001299,2]
[328132226,1716922232635,-151.69,0.0001299,2]
[328132228,1716922232644,-177.85156014,0.0001299,2]
[328132230,1716922232653,-177.85156014,0.0001299,2]
[328132232,1716922232663,-151.69,0.0001299,2]
[328132234,1716922232675,-151.69,0.0001299,2]
[328132236,1716922232684,-151.69,0.0001299,2]
[328132238,1716922232694,-151.69,0.0001299,2]
[328132240,1716922232703,-151.69,0.0001299,2]